[Event "Klubbmästerskap 2025 Torsdagar"]
[Site "Linköping, Sweden"]
[Date "2025.03.27"]
[Round "8.8"]
[White "Davidsson, Asker"]
[Black "Stefanovic, Dragan 1958"]
[Result "1-0"]
[TimeControl "90 min + 30 sec/move"]
[WhiteElo "1823"]
[BlackElo "1791"]

1. c4 {[%clk 01:28:21]} {[%emt 00:02:38]} e5 {[%clk 01:30:39]} {[%emt
00:00:21]} 2. Nc3 {[%clk 01:28:34]} {[%emt 00:00:17]} Bb4 {[%clk 01:30:42]}
{[%emt 00:00:27]} 3. g3 {[%clk 01:28:07]} {[%emt 00:00:57]} Bxc3 {[%clk
01:30:39]} {[%emt 00:00:33]} 4. bxc3 {[%clk 01:28:32]} {[%emt 00:00:05]} d6
{[%clk 01:30:09]} {[%emt 00:01:01]} 5. Bg2 {[%clk 01:28:36]} {[%emt 00:00:26]}
Ne7 {[%clk 01:29:05]} {[%emt 00:01:34]} 6. e4 {[%clk 01:27:11]} {[%emt
00:01:55]} c5 {[%clk 01:25:44]} {[%emt 00:03:51]} 7. Ne2 {[%clk 01:27:07]}
{[%emt 00:00:34]} Nbc6 {[%clk 01:23:24]} {[%emt 00:02:50]} 8. d3 {[%clk
01:24:49]} {[%emt 00:02:48]} f6 {[%clk 01:23:07]} {[%emt 00:00:47]} 9. Be3
{[%clk 01:23:15]} {[%emt 00:02:05]} O-O {[%clk 01:19:10]} {[%emt 00:04:27]} 10.
O-O {[%clk 01:23:19]} {[%emt 00:00:25]} Be6 {[%clk 01:18:44]} {[%emt 00:00:56]}
11. f4 {[%clk 01:22:15]} {[%emt 00:01:34]} Bg4 {[%clk 01:13:10]} {[%emt
00:06:04]} 12. f5 {[%clk 01:21:09]} {[%emt 00:01:37]} Qe8 {[%clk 01:12:59]}
{[%emt 00:00:40]} 13. h3 {[%clk 01:21:08]} {[%emt 00:00:32]} Bxe2 {[%clk
01:10:56]} {[%emt 00:02:33]} 14. Qxe2 {[%clk 01:21:36]} {[%emt 00:00:02]} Kh8
{[%clk 01:08:03]} {[%emt 00:03:23]} 15. g4 {[%clk 01:21:21]} {[%emt 00:00:45]}
g5 {[%clk 01:01:59]} {[%emt 00:06:34]} 16. fxg6 {[%clk 01:18:20]} {[%emt
00:03:31]} Qxg6 {[%clk 00:59:51]} {[%emt 00:02:38]} 17. Kh2 {[%clk 01:13:43]}
{[%emt 00:05:07]} Rg8 {[%clk 00:57:56]} {[%emt 00:02:25]} 18. Qf2 {[%clk
01:12:22]} {[%emt 00:01:51]} Raf8 {[%clk 00:58:00]} {[%emt 00:00:27]} 19. Qh4
{[%clk 01:11:58]} {[%emt 00:00:53]} Kg7 {[%clk 00:49:34]} {[%emt 00:08:56]} 20.
Rf2 {[%clk 01:02:28]} {[%emt 00:10:01]} Rh8 {[%clk 00:47:32]} {[%emt 00:02:31]}
21. Raf1 {[%clk 00:53:38]} {[%emt 00:09:20]} h6 {[%clk 00:44:47]} {[%emt
00:03:15]} 22. Rf3 {[%clk 00:51:40]} {[%emt 00:02:28]} Nd8 {[%clk 00:44:36]}
{[%emt 00:00:42]} 23. d4 {[%clk 00:47:18]} {[%emt 00:04:51]} Ne6 {[%clk
00:43:39]} {[%emt 00:01:27]} 24. dxe5 {[%clk 00:41:03]} {[%emt 00:06:45]} dxe5
{[%clk 00:42:27]} {[%emt 00:01:42]} 25. Qf2 {[%clk 00:40:20]} {[%emt 00:01:13]}
b6 {[%clk 00:42:22]} {[%emt 00:00:35]} 26. h4 {[%clk 00:35:32]} {[%emt
00:05:19]} Ng8 {[%clk 00:30:27]} {[%emt 00:12:25]} 27. Rd1 {[%clk 00:26:00]}
{[%emt 00:10:02]} Qf7 {[%clk 00:26:28]} {[%emt 00:04:29]} 28. h5 {[%clk
00:23:25]} {[%emt 00:03:06]} Ng5 {[%clk 00:25:25]} {[%emt 00:01:32]} 29. Bxg5
{[%clk 00:21:08]} {[%emt 00:02:47]} hxg5 {[%clk 00:24:29]} {[%emt 00:01:26]} 30.
Rfd3 {[%clk 00:20:37]} {[%emt 00:01:02]} Re8 {[%clk 00:18:24]} {[%emt
00:06:35]} 31. Rd7 {[%clk 00:17:29]} {[%emt 00:03:37]} Re7 {[%clk 00:18:43]}
{[%emt 00:00:12]} 32. Qf5 {[%clk 00:17:06]} {[%emt 00:00:53]} Kh6 {[%clk
00:11:12]} {[%emt 00:08:01]} 33. R1d6 {[%clk 00:15:03]} {[%emt 00:02:32]} Rh7
{[%clk 00:07:54]} {[%emt 00:03:48]} 34. Rxe7 {[%clk 00:12:05]} {[%emt
00:03:28]} Nxe7 {[%clk 00:03:43]} {[%emt 00:04:42]} 35. Rxf6+ {[%clk 00:12:16]}
{[%emt 00:00:18]} 1-0

[Event "Klubbmästerskap 2025 Torsdagar"]
[Site "Linköping, Sweden"]
[Date "2025.03.27"]
[Round "8.9"]
[White "Ivarsson, Simon"]
[Black "Larsson, Elin"]
[Result "0-1"]
[TimeControl "90 min + 30 sec/move"]
[WhiteElo "1771"]
[BlackElo "1666"]

1. e4 {[%emt 00:23:47]} c5 {[%emt 00:00:10]} 2. Nf3 {[%emt 00:00:10]} Nc6
{[%emt 00:00:39]} 3. c3 {[%emt 00:00:08]} Nf6 {[%emt 00:02:45]} 4. Bd3 {[%emt
00:00:59]} d6 {[%emt 00:03:20]} 5. h3 {[%emt 00:01:59]} g6 {[%emt 00:02:52]} 6.
Bc2 {[%emt 00:00:48]} Bg7 {[%emt 00:05:34]} 7. d3 {[%emt 00:00:28]} O-O {[%emt
00:02:33]} 8. O-O {[%emt 00:01:02]} b5 {[%emt 00:08:25]} 9. Be3 {[%clk
01:28:14]} {[%emt 00:01:04]} a5 {[%clk 01:00:59]} {[%emt 00:07:48]} 10. Qd2
{[%clk 01:27:36]} {[%emt 00:01:07]} b4 {[%clk 00:47:27]} {[%emt 00:14:03]} 11.
Bh6 {[%clk 01:27:03]} {[%emt 00:01:03]} Qb6 {[%clk 00:41:44]} {[%emt 00:06:13]}
12. Bxg7 {[%clk 01:25:52]} {[%emt 00:01:41]} Kxg7 {[%clk 00:42:04]} {[%emt
00:00:09]} 13. Ba4 {[%clk 01:22:27]} {[%emt 00:03:56]} Ba6 {[%clk 00:34:03]}
{[%emt 00:08:31]} 14. Bxc6 {[%clk 01:20:51]} {[%emt 00:02:06]} Qxc6 {[%clk
00:34:22]} {[%emt 00:00:11]} 15. Re1 {[%clk 01:21:03]} {[%emt 00:00:17]} c4
{[%clk 00:14:35]} {[%emt 00:20:18]} 16. e5 {[%clk 01:18:54]} {[%emt 00:02:39]}
Nd5 {[%clk 00:11:48]} {[%emt 00:03:17]} 17. d4 {[%clk 01:17:28]} {[%emt
00:01:57]} Rab8 {[%clk 00:06:25]} {[%emt 00:05:53]} 18. Re2 {[%clk 01:13:04]}
{[%emt 00:04:54]} Rb6 {[%clk 00:04:30]} {[%emt 00:02:25]} 19. Nh2 {[%clk
01:11:50]} {[%emt 00:01:43]} Bc8 {[%clk 00:01:25]} {[%emt 00:03:35]} 20. Nf3
{[%clk 01:09:07]} {[%emt 00:03:12]} Bf5 {[%clk 00:01:13]} {[%emt 00:00:44]} 21.
Ne1 {[%clk 01:09:27]} {[%emt 00:00:09]} Bxb1 {[%clk 00:01:10]} {[%emt
00:00:33]} 22. Rxb1 {[%clk 01:09:37]} {[%emt 00:00:20]} bxc3 {[%clk 00:01:27]}
{[%emt 00:00:14]} 23. Qc2 {[%clk 01:09:20]} {[%emt 00:00:47]} Rfb8 {[%clk
00:01:09]} {[%emt 00:00:48]} 24. b3 {[%clk 01:09:25]} {[%emt 00:00:25]} cxb3
{[%clk 00:01:08]} {[%emt 00:00:32]} 25. Rxb3 {[%clk 01:09:23]} {[%emt
00:00:32]} Rxb3 {[%clk 00:01:17]} {[%emt 00:00:21]} 26. axb3 {[%clk 01:09:48]}
{[%emt 00:00:04]} Qb5 {[%clk 00:01:03]} {[%emt 00:00:44]} 27. Qa2 {[%clk
01:09:25]} {[%emt 00:00:53]} Nb4 {[%clk 00:00:52]} {[%emt 00:00:42]} 0-1